bitfinex/quotes_SOLUSD_20240711
["timestamp","ask_amount","ask_price","bid_price","bid_amount"]
[1720721778136,0.8221755,138.84,138.82,39.252]
[1720721778721,0.8221755,138.84,138.83,7.203]
[1720721779437,0.8221755,138.84,138.83,21.243]
[1720721779615,0.8221755,138.84,138.83,66.243]
[1720721781523,0.8221755,138.84,138.83,66.583]
[1720721782027,0.8221755,138.84,138.83,67.26661601]
[1720721785336,0.8221755,138.84,138.83,74.07895457]
[1720721786240,0.8221755,138.84,138.83,72.8822]
[1720721789025,13.7367,138.94,138.83,72.8822]
[1720721789026,7.1971,138.95,138.91,7.1989]
[1720721789237,9.41656524,138.94,138.91,21.2389]
[1720721789446,14.73271126,138.95,138.91,21.2389]
[1720721789447,9.41656524,138.93,138.91,21.2389]
[1720721789658,14.73271126,138.95,138.91,21.2389]
[1720721789832,9.4163021,138.94,138.91,21.2389]
[1720721790155,9.41652127,138.93,138.91,21.2389]
[1720721790333,14.73271126,138.95,138.91,21.2389]
[1720721790535,9.41489378,138.94,138.91,21.2389]
[1720721790738,14.73271126,138.95,138.91,21.2389]
[1720721790935,9.41488933,138.94,138.91,21.2389]
[1720721791136,14.73271126,138.95,138.91,21.2389]
[1720721791334,9.41486443,138.94,138.91,21.2389]
[1720721791535,7.1976,138.94,138.91,14.04]
[1720721791847,7.198,138.93,138.89,21.2398]
[1720721792027,7.198,138.93,138.9,14.04]
[1720721792645,7.1975,138.94,138.9,14.04]
[1720721793425,7.1975,138.94,138.9,21.2393]
[1720721793642,14.73261126,138.95,138.91,59.04]
[1720721793843,20.0,138.94,138.91,45.0]
[1720721794650,20.0,138.94,138.9,21.2392]
[1720721794852,27.1974,138.94,138.9,21.2392]
[1720721798426,20.0,138.94,138.9,21.2392]
[1720721798951,20.0,138.94,138.91,21.2388]
[1720721799150,22.93540383,138.96,138.91,17.9963]
[1720721799455,22.0574755,138.98,138.94,7.1973]
[1720721799631,22.0574755,138.98,138.93,39.232]
[1720721799831,29.59158239,138.98,138.93,39.232]
[1720721800133,7.1958,138.97,138.93,39.232]
[1720721800341,8.35628239,138.98,138.95,32.0316]
[1720721800545,0.8221755,138.98,138.96,14.04]
[1720721800741,0.8221755,138.98,138.96,21.2359]
[1720721801139,0.8221755,138.98,138.95,17.9916]
[1720721801140,0.8221755,138.98,138.97,14.04]
[1720721801339,0.8221755,138.98,138.97,66.2357]
[1720721801634,0.8221755,138.98,138.97,66.5757]
[1720721802557,0.8221755,138.98,138.97,52.5357]
[1720721805039,0.8221755,138.98,138.97,52.1957]
[1720721806147,0.8221755,138.98,138.97,52.3657]
[1720721806538,0.8221755,138.98,138.97,52.5357]
[1720721806935,0.8221755,138.98,138.97,52.1957]
[1720721807242,0.8221755,138.98,138.97,45.0]
[1720721807444,0.8221755,138.98,138.96,52.1961]
[1720721807848,0.8221755,138.98,138.92,27.88]
[1720721807849,8.0175755,138.98,138.92,17.995]
[1720721808151,0.8221755,138.98,138.9,70.2845]
[1720721808328,8.0178755,138.98,138.94,17.993]
[1720721808735,7.1958,138.97,138.94,17.993]
[1720721809159,8.0175755,138.98,138.94,17.993]
[1720721809354,20.0,138.97,138.94,17.993]
[1720721809746,20.0,138.97,138.96,7.1963]
[1720721809930,20.0,138.97,138.94,17.993]
[1720721810132,7.1959,138.97,138.94,17.993]
[1720721810659,20.8221755,138.98,138.94,17.993]
[1720721810836,28.0175755,138.98,138.94,25.1902]
[1720721811038,28.0177755,138.98,138.94,17.993]
[1720721811362,20.8221755,138.98,138.94,17.993]
[1720721812136,28.0175755,138.98,138.94,17.993]
[1720721812350,20.8221755,138.98,138.94,25.1901]
[1720721812660,28.0175755,138.98,138.94,25.1901]
[1720721812831,20.8221755,138.98,138.95,7.1967]
[1720721813034,28.35544804,138.98,138.95,7.1967]
[1720721813559,20.8221755,138.98,138.95,7.1967]
[1720721813765,0.8221755,138.98,138.96,7.1962]
[1720721814957,0.8221755,138.98,138.95,7.1967]
[1720721815464,0.8221755,138.98,138.96,7.1961]
[1720721815660,0.8221755,138.98,138.95,7.1967]
[1720721816234,8.0173755,138.98,138.94,25.1902]
[1720721817439,0.8221755,138.98,138.94,17.993]
[1720721817646,8.0177755,138.98,138.94,25.1903]
[1720721818059,0.8221755,138.98,138.94,17.993]
[1720721818249,20.8221755,138.98,138.95,45.0]
[1720721818656,20.8221755,138.98,138.96,25.1866]
[1720721818859,20.8221755,138.98,138.96,17.9905]
[1720721819346,20.8221755,138.98,138.93,0.17]
[1720721819347,20.8221755,138.98,138.93,18.1643]
[1720721819552,20.8221755,138.98,138.95,17.9916]
[1720721819865,20.8221755,138.98,138.95,25.1882]
[1720721820365,7.1959,138.97,138.93,7.1978]
[1720721820865,7.1959,138.97,138.92,25.193]
[1720721821070,7.1959,138.97,138.93,7.1978]
[1720721821564,28.0175755,138.98,138.94,7.1973]
[1720721821943,7.1963,138.97,138.92,25.193]
[1720721822168,7.1963,138.97,138.93,7.1977]
[1720721822361,7.1965,138.96,138.92,25.1929]
[1720721823245,7.1959,138.97,138.93,7.1978]
[1720721823863,28.0175755,138.98,138.94,7.1973]
[1720721824457,7.1959,138.97,138.93,7.1976]
[1720721824680,21.1565,138.96,138.92,17.9948]
[1720721825061,13.96,138.96,138.93,7.1975]
[1720721825450,13.96,138.95,138.92,17.9948]
[1720721825647,21.1569,138.95,138.91,7.1984]
[1720721826151,14.7302973,138.97,138.93,7.1974]
[1720721826346,33.96,138.96,138.93,7.1974]
[1720721826554,20.0,138.96,138.94,7.1972]
[1720721826778,20.0,138.96,138.93,25.1919]
[1720721827072,20.0,138.96,138.93,17.9943]
[1720721827271,13.96,138.95,138.93,17.9943]
[1720721827573,13.96,138.94,138.92,7.1983]
[1720721828369,26.2386,138.96,138.93,7.1978]
[1720721828577,33.4349,138.96,138.92,25.1937]
[1720721828786,13.96,138.95,138.92,25.1937]
[1720721829681,13.96,138.95,138.93,7.1978]
[1720721829979,33.96,138.96,138.93,7.1978]
[1720721830271,41.1564,138.96,138.92,25.1938]
[1720721830665,13.96,138.95,138.92,25.1938]
[1720721831361,21.1568,138.95,138.92,17.9956]
[1720721831760,21.1568,138.95,138.91,7.1987]
[1720721832270,13.96,138.95,138.9,13.96]
[1720721832482,13.96,138.95,138.92,7.1981]
[1720721832977,21.1569,138.95,138.91,25.1951]
[1720721833383,7.1969,138.95,138.91,25.1951]
[1720721833584,21.1569,138.95,138.91,25.1951]
[1720721833882,21.1573,138.94,138.91,17.9964]
[1720721834062,21.1573,138.94,138.9,7.1992]
[1720721834474,21.1578,138.93,138.9,7.1992]
[1720721834675,7.1969,138.95,138.91,7.1987]
[1720721834870,7.1979,138.93,138.9,17.9981]
[1720721835072,13.96,138.93,138.9,17.9981]
[1720721835266,13.96,138.93,138.9,25.1972]
[1720721835574,13.96,138.94,138.9,25.1973]
[1720721835962,13.96,138.93,138.9,25.1973]
[1720721836172,13.96,138.94,138.91,7.1988]
[1720721836562,21.1574,138.94,138.9,25.1974]
[1720721836756,13.96,138.94,138.9,25.1974]
[1720721836960,13.96,138.93,138.9,25.1974]
[1720721837195,21.1582,138.93,138.87,18.0016]
[1720721837484,13.96,138.92,138.89,7.1997]
[1720721837660,13.96,138.9,138.87,25.2024]
[1720721837860,7.1995,138.9,138.86,7.2013]
[1720721838065,7.1995,138.9,138.85,7.2016]
[1720721838066,13.96,138.88,138.85,7.2016]
[1720721839267,13.96,138.87,138.85,7.2016]
[1720721840564,13.96,138.88,138.86,7.2012]
[1720721840981,13.96,138.89,138.86,7.2012]
[1720721841365,13.96,138.88,138.85,7.2018]
[1720721841868,13.96,138.88,138.83,49.9741]
[1720721842189,13.96,138.88,138.87,7.2009]
[1720721842368,13.96,138.89,138.87,7.2009]
[1720721842766,13.96,138.89,138.86,25.2047]
[1720721843388,7.199,138.91,138.87,7.2009]
[1720721843586,13.96,138.89,138.87,7.2009]
[1720721843771,33.96,138.9,138.87,7.2009]
[1720721844171,20.0,138.9,138.87,7.2009]
[1720721844361,20.0,138.9,138.87,21.1609]
[1720721844766,20.0,138.9,138.88,7.2003]
[1720721844971,20.0,138.9,138.87,21.1607]
[1720721845189,20.0,138.9,138.87,7.2007]
[1720721846588,27.1995,138.9,138.86,39.1649]
[1720721846891,27.1995,138.9,138.86,31.9635]
[1720721847079,41.1595,138.9,138.86,18.0035]
[1720721847977,7.2,138.89,138.86,18.0035]
[1720721848296,7.2005,138.88,138.84,21.1624]
[1720721848584,7.2005,138.88,138.85,45.0]
[1720721848772,7.2009,138.87,138.83,39.34]
[1720721848985,7.2009,138.87,138.83,39.17]
[1720721849775,21.1606,138.88,138.84,7.2025]
[1720721850079,7.2014,138.87,138.83,18.0072]
[1720721850273,7.2014,138.87,138.81,16.277]
[1720721850274,21.1619,138.86,138.82,7.2032]
[1720721850873,21.1615,138.86,138.82,25.2119]
[1720721852597,13.96,138.86,138.83,7.2029]
[1720721853691,13.96,138.85,138.82,18.0086]
[1720721853899,13.96,138.84,138.82,18.0086]
[1720721854490,13.96,138.84,138.82,25.2121]
[1720721855699,7.2016,138.86,138.82,25.2121]
[1720721855885,13.96,138.85,138.82,25.2121]
[1720721856191,13.96,138.85,138.83,7.203]
[1720721856882,13.96,138.86,138.84,7.2025]
[1720721857203,21.50141952,138.87,138.85,7.2019]
[1720721857377,21.50141952,138.87,138.84,25.2085]
[1720721857794,13.96,138.86,138.84,18.0061]
[1720721857990,13.96,138.86,138.82,7.2033]
[1720721858200,13.96,138.85,138.82,7.2033]
[1720721858586,13.96,138.85,138.83,7.203]
[1720721858789,13.96,138.86,138.83,7.203]
[1720721859488,21.1615,138.86,138.82,7.2034]
[1720721860082,13.96,138.86,138.83,7.2029]
[1720721860499,7.54141952,138.87,138.84,7.2024]
[1720721860907,21.50141952,138.87,138.84,7.2024]
[1720721861607,21.1622,138.85,138.8,18.0114]
[1720721861904,13.96,138.84,138.8,18.0114]
[1720721862698,13.96,138.84,138.81,7.2038]
[1720721863301,21.1625,138.84,138.8,25.2158]
[1720721863494,13.96,138.83,138.8,25.2158]
[1720721866005,21.163,138.83,138.8,18.0114]
[1720721866188,13.96,138.83,138.8,25.2157]
[1720721868318,13.96,138.81,138.78,7.2054]
[1720721869920,7.2039,138.82,138.78,7.2054]
[1720721870223,13.96,138.82,138.79,7.2051]
[1720721871125,13.96,138.81,138.79,7.2051]
[1720721872410,13.96,138.81,138.77,18.0148]
[1720721872601,13.96,138.8,138.77,18.0148]
[1720721873403,13.96,138.8,138.77,25.2206]
[1720721873704,7.2041,138.81,138.77,25.2206]
[1720721873905,13.96,138.8,138.77,25.2206]
[1720721875632,7.2046,138.8,138.77,18.0148]
[1720721875805,13.96,138.79,138.77,18.0148]
[1720721876001,13.96,138.79,138.76,7.2065]
[1720721876309,13.96,138.78,138.76,7.2065]
[1720721877828,13.96,138.78,138.75,7.207]
[1720721880214,21.1656,138.78,138.75,7.207]
[1720721880530,14.73235812,138.8,138.76,7.2066]
[1720721880722,20.0,138.79,138.76,7.2066]
[1720721880930,20.0,138.79,138.76,18.0161]
[1720721881121,20.0,138.79,138.76,31.9761]
[1720721881328,20.0,138.79,138.77,7.2059]
[1720721881734,20.0,138.79,138.76,39.1826]
[1720721881912,7.52755812,138.8,138.76,18.0161]
[1720721882119,21.7075,138.84,138.78,18.0139]
[1720721882120,7.2038,138.82,138.78,18.0139]
[1720721882327,21.1631,138.83,138.79,7.2051]
[1720721882522,7.52613203,138.83,138.8,7.2045]
[1720721883021,7.52613203,138.83,138.79,13.96]
[1720721883022,7.52613203,138.83,138.79,21.1649]
[1720721883225,21.48613203,138.83,138.78,31.9739]
[1720721883626,7.52613203,138.83,138.8,7.2045]
[1720721883816,7.2035,138.82,138.79,21.1649]
[1720721884016,7.2035,138.82,138.79,7.2049]
[1720721884235,28.69149387,138.83,138.79,7.2049]
[1720721884440,28.69149387,138.83,138.77,45.0]
[1720721884441,13.96,138.81,138.77,45.0]
[1720721884647,13.96,138.81,138.77,21.1661]
[1720721884648,21.1642,138.81,138.77,21.1661]
[1720721884859,21.1637,138.82,138.78,7.2055]
[1720721885018,7.52829387,138.83,138.79,7.2051]
[1720721885019,14.73149387,138.83,138.79,7.2051]
[1720721885217,20.0,138.82,138.79,21.1651]
[1720721886219,27.2035,138.82,138.79,21.1651]
[1720721886415,7.52829387,138.83,138.8,7.2044]
[1720721886757,7.2017,138.86,138.82,13.96]
[1720721886924,14.72898294,138.86,138.83,13.96]
[1720721887123,7.52728294,138.86,138.84,13.96]
[1720721887326,7.2011,138.87,138.84,13.96]
[1720721887527,7.2015,138.86,138.84,13.96]
[1720721887922,7.2017,138.86,138.83,13.96]
[1720721888136,7.2017,138.86,138.83,15.40045176]
[1720721889630,7.202,138.85,138.83,15.40045176]
[1720721890540,7.202,138.85,138.83,13.96]
[1720721891439,7.2025,138.84,138.81,18.0099]
[1720721891641,7.203,138.83,138.81,13.96]
[1720721891857,13.96,138.86,138.79,6.653]
[1720721891858,7.2035,138.82,138.79,6.653]
[1720721892042,7.2035,138.82,138.8,13.96]
[1720721893605,7.204,138.81,138.79,20.613]
[1720721893890,7.2037,138.82,138.79,20.613]
[1720721894694,7.2041,138.81,138.78,25.2186]
[1720721894909,7.2041,138.81,138.78,39.1786]
[1720721895294,7.2037,138.82,138.78,39.1786]
[1720721895612,7.2043,138.81,138.77,7.2061]
[1720721895795,7.2043,138.81,138.78,13.96]
[1720721896117,7.2043,138.81,138.77,21.1661]
[1720721896584,7.2047,138.8,138.76,13.5974]
[1720721896780,7.2047,138.8,138.77,13.96]
[1720721898913,7.2047,138.8,138.77,21.1661]
[1720721899103,7.2041,138.81,138.77,39.1814]
[1720721899415,7.2041,138.81,138.78,13.96]
[1720721900989,7.2041,138.81,138.77,39.1813]
[1720721910718,7.2041,138.81,138.77,25.2213]
[1720721910915,7.2046,138.8,138.78,13.96]
[1720721911519,7.2046,138.8,138.77,39.1813]
[1720721911900,7.2046,138.8,138.77,31.9753]
[1720721912621,14.73536389,138.8,138.77,31.9753]
[1720721912818,7.53076389,138.8,138.77,39.1812]
[1720721913022,7.53076389,138.8,138.78,13.96]
[1720721913310,14.7349865,138.81,138.78,13.96]
[1720721915199,7.2047,138.8,138.78,13.96]
[1720721915817,7.2047,138.8,138.77,31.9753]
[1720721916399,7.2047,138.8,138.77,18.0153]
[1720721916713,7.2047,138.8,138.76,21.1664]
[1720721916911,7.2047,138.8,138.77,13.96]
[1720721917505,7.5308865,138.81,138.79,13.96]
[1720721917704,7.2033,138.83,138.8,58.96]
[1720721917916,20.0,138.82,138.81,13.96]
[1720721919309,7.53004369,138.84,138.81,21.1639]
[1720721919506,7.2016,138.86,138.83,13.96]
[1720721919702,7.2016,138.86,138.84,13.96]
[1720721920320,7.52891807,138.87,138.85,13.96]
[1720721920503,7.52891807,138.87,138.86,13.96]
[1720721920912,7.2008,138.88,138.86,13.96]
[1720721922104,7.2008,138.88,138.87,13.96]
[1720721922829,7.201,138.87,138.86,13.96]
[1720721925826,7.2006,138.88,138.86,13.96]
[1720721926410,7.2009,138.87,138.86,13.96]
[1720721926723,7.2014,138.86,138.85,13.96]
[1720721926924,7.2023,138.85,138.82,63.0086]
[1720721927229,7.2015,138.86,138.83,13.96]
[1720721927431,7.2015,138.86,138.84,13.96]
[1720721928615,7.202,138.85,138.84,13.96]
[1720721929011,7.2017,138.86,138.84,13.96]
[1720721929644,7.2017,138.86,138.82,25.2119]
[1720721929936,7.2017,138.86,138.83,13.96]
[1720721932232,7.2025,138.84,138.83,13.96]
[1720721932435,7.2021,138.85,138.83,13.96]
[1720721933011,7.5299751,138.87,138.84,21.162]
[1720721933318,7.5299751,138.87,138.86,13.96]
[1720721933534,27.5299751,138.87,138.86,13.96]
[1720721934120,20.0,138.87,138.86,13.96]
[1720721937033,27.2009,138.87,138.86,13.96]
[1720721937440,7.52885243,138.89,138.86,13.96]
[1720721937629,20.0,138.88,138.87,13.96]
[1720721938034,7.52885243,138.89,138.87,13.96]
[1720721938263,7.1997,138.9,138.88,13.96]
[1720721939131,7.1999,138.89,138.88,13.96]
[1720721939657,7.1995,138.9,138.88,13.96]
[1720721939839,7.53009793,138.91,138.89,21.1596]
[1720721940046,7.1975,138.94,138.9,58.96]
[1720721940355,7.1981,138.93,138.92,13.96]
[1720721940927,7.1981,138.93,138.9,45.0]
[1720721941351,7.1985,138.92,138.9,45.0]
[1720721941853,7.198,138.93,138.89,13.96]
[1720721942148,7.198,138.93,138.9,13.96]
[1720721942745,7.1984,138.92,138.88,18.3409]
[1720721942927,7.1989,138.91,138.88,13.96]
[1720721943129,7.1989,138.91,138.87,21.1607]
[1720721943351,7.1989,138.91,138.88,45.0]
[1720721944631,7.1994,138.9,138.86,7.2013]
[1720721944847,21.1594,138.9,138.86,7.2013]
[1720721945933,13.96,138.91,138.87,18.0018]
[1720721946127,7.1985,138.92,138.88,7.2002]
[1720721946355,20.0,138.91,138.88,7.2002]
[1720721946847,27.1989,138.91,138.87,39.1626]
[1720721947034,41.1589,138.91,138.87,25.2026]
[1720721947235,7.1994,138.9,138.87,18.0018]
[1720721947845,13.96,138.89,138.84,25.2074]
[1720721948057,20.0,138.91,138.84,25.2074]
[1720721948058,13.96,138.88,138.84,25.2074]
[1720721948255,21.1606,138.88,138.84,25.2074]
[1720721949054,13.96,138.88,138.85,7.2019]
[1720721949749,21.16,138.89,138.85,7.2019]
[1720721949962,21.1605,138.88,138.84,25.2078]
[1720721950164,21.1599,138.89,138.85,7.2018]
[1720721950469,13.96,138.9,138.87,7.2008]
[1720721950672,20.0,138.89,138.87,7.2008]
[1720721951047,20.0,138.89,138.86,25.2046]
[1720721951363,27.2002,138.89,138.86,18.0033]
[1720721952553,7.2005,138.88,138.84,21.1624]
[1720721952873,7.2005,138.88,138.84,7.2024]
[1720721953172,33.96,138.89,138.8,18.0105]
[1720721953173,13.96,138.86,138.8,18.0105]
[1720721953369,13.96,138.85,138.8,31.9705]
[1720721953589,21.162,138.85,138.81,7.2039]
[1720721955659,21.1627,138.84,138.8,18.0105]
[1720721956459,21.1627,138.84,138.8,25.2147]
[1720721956661,7.2027,138.84,138.8,25.2147]
[1720721956976,20.0,138.83,138.78,7.2052]
[1720721957153,7.2039,138.82,138.78,7.2052]
[1720721957357,20.0,138.81,138.78,7.2052]
[1720721957956,7.2039,138.82,138.78,7.2052]
[1720721958157,22.3524,138.85,138.81,7.204]
[1720721958376,20.0,138.84,138.81,25.2137]
[1720721958677,20.0,138.84,138.82,7.2035]
[1720721958855,27.202,138.85,138.81,25.2139]
[1720721959055,7.2025,138.84,138.81,18.01]
[1720721959254,20.0,138.83,138.8,7.2045]
[1720721959676,7.2025,138.84,138.8,7.2045]
[1720721959883,7.2021,138.85,138.81,7.204]
[1720721960061,20.0,138.84,138.81,7.204]
[1720721960473,20.0,138.84,138.8,18.0112]
[1720721960769,7.2033,138.83,138.79,7.2049]
[1720721962876,7.2033,138.83,138.79,25.2176]
[1720721965082,7.2033,138.83,138.75,36.0342]
[1720721965083,14.73992856,138.84,138.81,18.0098]
[1720721965278,20.0,138.83,138.8,7.2044]
[1720721965582,7.2016,138.86,138.82,7.2035]
[1720721965782,20.0,138.85,138.82,7.2035]
[1720721966084,20.0,138.85,138.8,18.0108]
[1720721966085,27.2021,138.85,138.81,7.2039]
[1720721966272,20.0,138.85,138.82,7.2032]
[1720721966982,27.202,138.85,138.81,7.2038]
[1720721968281,7.2026,138.84,138.8,25.3852]
[1720721968479,7.2032,138.83,138.81,45.0]
[1720721968681,7.2027,138.84,138.81,45.0]
[1720721969181,20.0,138.85,138.82,7.2033]
[1720721969387,14.73834615,138.86,138.82,18.0084]
[1720721969388,7.53644615,138.86,138.82,18.0084]
[1720721969578,22.3503,138.89,138.84,7.202]
[1720721969779,7.53517623,138.88,138.84,7.202]
[1720721970470,22.3503,138.89,138.85,7.2019]
[1720721970471,7.2,138.89,138.85,7.2019]
[1720721970677,7.2,138.89,138.85,52.2019]
[1720721971575,7.2,138.89,138.85,45.0]
[1720721971881,7.2006,138.88,138.85,45.0]
[1720721974388,7.2011,138.87,138.84,18.0059]
[1720721975870,7.2005,138.88,138.84,25.2083]
[1720721978793,7.2,138.89,138.84,25.2083]
[1720721979090,7.2,138.89,138.84,18.0059]
[1720721979281,7.2,138.89,138.85,7.2018]
[1720721980390,7.53425092,138.9,138.86,18.0027]
[1720721980602,20.0,138.89,138.88,7.2004]
[1720721980774,20.0,138.89,138.87,7.2007]
[1720721980975,27.199,138.91,138.87,7.2007]
[1720721981392,27.199,138.91,138.86,25.204]
[1720721981694,7.1996,138.9,138.86,25.204]
[1720721981880,27.2002,138.89,138.85,7.2018]
[1720721982193,7.2002,138.89,138.86,45.0]
[1720721982587,7.2002,138.89,138.85,7.2018]
[1720721984696,20.0,138.91,138.85,18.0047]
[1720721984885,27.199,138.91,138.86,52.201]
[1720721985287,7.1995,138.9,138.86,52.201]
[1720721985487,20.0,138.89,138.86,52.201]
[1720721986787,27.1999,138.89,138.86,45.0]
[1720721986992,7.2006,138.88,138.86,45.0]
[1720721987194,20.0,138.89,138.83,0.34]
[1720721987491,20.0,138.9,138.83,45.34]
[1720721987679,20.0,138.9,138.84,45.0]
[1720721988082,7.2007,138.88,138.84,7.2024]
[1720721988594,7.201,138.87,138.83,52.5429]
[1720721989706,7.2005,138.88,138.84,7.2025]
[1720721990292,7.2,138.89,138.85,7.2018]
[1720721990600,20.0,138.88,138.85,7.2018]
[1720721991580,27.2005,138.88,138.84,25.208]
[1720721993588,7.201,138.87,138.84,18.0057]
[1720721996104,27.2006,138.88,138.84,25.2081]
[1720721996618,41.1806,138.88,138.84,25.2081]
[1720721997010,27.2006,138.88,138.84,25.2081]
[1720721997501,20.0,138.88,138.85,7.2019]
[1720721997808,20.0,138.88,138.85,21.1819]
[1720721999004,33.98,138.88,138.84,18.0057]
[1720721999204,21.1813,138.87,138.83,52.2026]
[1720721999397,7.2013,138.87,138.83,66.1826]
[1720722000211,7.2013,138.87,138.83,21.1826]
[1720722000509,27.2018,138.86,138.82,7.2035]
[1720722000890,41.1818,138.86,138.82,7.2035]
[1720722001091,7.202,138.85,138.82,7.2035]
[1720722001300,21.182,138.85,138.81,25.2129]
[1720722001608,20.0,138.86,138.78,18.0131]
[1720722001806,21.1831,138.83,138.79,7.2049]
[1720722002207,21.1837,138.82,138.78,25.2186]
[1720722002702,7.2037,138.82,138.78,25.2186]
[1720722003317,22.2543,138.83,138.79,7.205]
[1720722003606,20.0,138.82,138.79,7.205]
[1720722003809,20.0,138.82,138.8,7.2045]
[1720722004201,20.0,138.82,138.79,7.2049]
[1720722004401,15.0511,138.83,138.8,7.2044]
[1720722004712,22.2541,138.83,138.79,7.2049]
[1720722007020,7.2036,138.82,138.78,25.2185]
[1720722008318,22.2543,138.83,138.79,7.205]
[1720722008701,20.0,138.82,138.79,7.205]
[1720722009696,25.79440439,138.86,138.82,7.2035]
[1720722010023,22.8402,138.86,138.82,7.2035]
[1720722010202,15.6384,138.86,138.83,7.203]
[1720722010410,6.1902,138.89,138.84,7.2021]
[1720722010411,7.2004,138.88,138.84,7.2021]
[1720722010601,22.8383,138.89,138.85,7.2018]
[1720722010917,7.2004,138.88,138.84,7.2023]
[1720722012013,27.2012,138.87,138.83,18.177]
[1720722012213,7.2015,138.86,138.83,18.007]
[1720722012993,7.2015,138.86,138.8,24.5727]
[1720722013200,7.2015,138.86,138.82,7.2035]
[1720722013814,7.2022,138.85,138.81,52.5438]
[1720722014503,7.2016,138.86,138.81,52.5438]
[1720722015110,7.2016,138.86,138.82,7.2033]
[1720722015504,15.6384,138.89,138.83,45.17]
[1720722015702,15.6384,138.89,138.82,6.0239]
[1720722016013,15.6384,138.89,138.83,45.34]
[1720722016316,15.6384,138.89,138.84,18.0059]
[1720722016707,7.2008,138.88,138.84,25.2083]
[1720722017103,7.2015,138.86,138.82,7.2034]
[1720722018209,7.2011,138.87,138.83,7.203]
[1720722018402,7.2006,138.88,138.84,7.2024]
[1720722018806,22.8385,138.89,138.85,7.2017]
[1720722019010,7.52827681,138.9,138.86,7.2014]
[1720722019320,20.0,138.89,138.86,7.2014]
[1720722020311,27.2,138.89,138.85,25.2064]
[1720722022819,27.2,138.89,138.86,45.34]
[1720722023329,14.72777681,138.9,138.86,52.5414]
[1720722023729,7.2,138.89,138.86,45.34]
[1720722026017,7.53224796,138.91,138.86,45.34]
[1720722026216,7.53224796,138.91,138.88,7.2001]
[1720722026423,22.5767,138.93,138.88,7.2001]
[1720722026424,15.3784,138.93,138.88,7.2001]
[1720722026733,22.90972132,138.93,138.88,7.2001]
[1720722027036,22.90972132,138.93,138.92,7.1983]
[1720722027037,7.53132132,138.93,138.92,7.1983]
[1720722027208,7.1964,138.96,138.92,7.1983]
[1720722028328,7.1964,138.96,138.91,25.3653]
[1720722028539,7.1969,138.95,138.92,45.0]
[1720722028911,7.1975,138.94,138.89,0.17]
[1720722029124,7.1969,138.95,138.91,7.1988]
[1720722029329,7.1969,138.95,138.92,45.0]
[1720722029729,7.1964,138.96,138.92,45.0]
[1720722029917,7.1964,138.96,138.92,7.1983]
[1720722030306,30.57540198,138.97,138.93,7.1978]
[1720722030529,20.0,138.96,138.93,7.1978]
[1720722030917,20.0,138.96,138.92,7.1982]
[1720722031227,27.1964,138.96,138.92,7.1982]
[1720722031624,20.0,138.96,138.93,52.5378]
[1720722034235,27.1967,138.96,138.92,25.1936]
[1720722034431,7.1967,138.96,138.92,25.1936]
[1720722035230,30.57510198,138.97,138.93,7.1978]